Cogmind - Beta 13 @@@ ROGUE MODE // 2024.04.01 @ 05:03:51 Player: raiguard Result: Destroyed by H-55 Commando with Gauss Rifle Performance ------------- Evolutions (2) 1000 Regions Visited (5) 1000 Robots Destroyed (25) 125 Value Destroyed (913) 913 Prototype IDs (0) 0 Alien Tech Used (0) 0 Bonus (-9) -9 TOTAL SCORE: 3029 Bonus ------- Friendly Fire -9 Cogmind --------- Core Integrity 0/550 Matter 268/300 Energy 150/150 System Corruption 0% Temperature Cool (0) Movement Core (350) Ox6 Location -8/Materials Parts ------- > --- POWER (1) -------- Micro Nuclear Core > --- PROPULSION (4) --- (None) > --- UTILITY (4) ------ Small Storage Unit Improved Terrain Scan Processor > --- WEAPON (2) ------- EM Pulse Cannon Assault Rifle > --- INVENTORY (8) ---- Transmission Jammer Improved Datajack Peak State ------------ > --- POWER ------------ Micro Nuclear Core > --- PROPULSION ------- Aluminum Leg Aluminum Leg Carbon-fiber Leg Carbon-fiber Leg > --- UTILITY ---------- Small Storage Unit Advanced Weight Redist. System Improved Terrain Scan Processor Transmission Jammer > --- WEAPON ----------- Heavy Assault Rifle Minigun > --- INVENTORY -------- Micro Nuclear Core EM Pulse Gun Particle Gun EM Pulse Cannon Assault Rifle Light Assault Rifle Light Cannon Improved Datajack [Rating: 29] Favorites ----------- Power Light Ion Engine Engine Light Ion Engine Power Core Micro Nuclear Core Propulsion Aluminum Leg Leg Aluminum Leg Utility Small Storage Unit Device Advanced Weight Redist. System Storage Small Storage Unit Processor Improved Terrain Scan Processor Weapon Light Assault Rifle Energy Gun EM Pulse Gun Energy Cannon EM Pulse Cannon Ballistic Gun Light Assault Rifle Ballistic Cannon Light Cannon Build | -11 -10 -10 -10 -9 -8 ------- Run | Yrd Mat Min Exi Min Mat Slots Evolved 4 | . . . . . 4 Power . | . . . . . . Propulsion 2 | . . . . . 2 Utility 2 | . . . . . 2 Weapon . | . . . . . . Parts Attached 47 | 6 . . . 3 38 Power 9 | 1 . . . 2 6 Engine 6 | 1 . . . 2 3 Core 3 | . . . . . 3 Reactor . | . . . . . . Propulsion 12 | 2 . . . 1 9 Treads . | . . . . . . Leg 12 | 2 . . . 1 9 Wheel . | . . . . . . Hover . | . . . . . . Flight . | . . . . . . Utility 8 | 1 . . . . 7 Device 3 | . . . . . 3 Storage 4 | 1 . . . . 3 Processor 1 | . . . . . 1 Hackware . | . . . . . . Protection . | . . . . . . Artifact . | . . . . . . Weapon 18 | 2 . . . . 16 Energy Gun 4 | 1 . . . . 3 Energy Cannon 4 | . . . . . 4 Ballistic Gun 9 | 1 . . . . 8 Ballistic Cannon 1 | . . . . . 1 Launcher . | . . . . . . Special Weapon . | . . . . . . Impact Weapon . | . . . . . . Slashing Weapon . | . . . . . . Piercing Weapon . | . . . . . . Special Melee Weapon . | . . . . . . Unidentified Prototypes . | . . . . . . Parts Lost 18 | . . . . . 18 Power 2 | . . . . . 2 Propulsion 7 | . . . . . 7 Utility 3 | . . . . . 3 Weapon 6 | . . . . . 6 Highest Loss Streak 11 | . . . . . 11 To Critical Strikes . | . . . . . . Average Slot Usage (%) 88 | . 85 85 85 85 89 Engine 6 | . 14 14 14 14 3 Core 3 | . . . . . 5 Leg 30 | . 28 28 28 28 31 Device 3 | . . . . . 5 Storage 19 | . 14 14 14 14 21 Processor 4 | . . . . . 6 Energy Gun 5 | . 14 14 14 14 2 Ballistic Gun 12 | . 14 14 14 14 12 Ballistic Cannon 1 | . . . . . 1 Naked Turns . | . . . . . . Heaviest Build 21 | 11 11 11 11 11 21 Greatest Support 59 | 20 20 20 20 23 59 Greatest Overweight (x) 3 | . . . . . 3 Average Overweight (x) . | . . . . . . Largest Inventory Capacity 8 | 8 8 8 8 8 8 Average Capacity 7 | 6 8 8 8 8 8 Most Carried 8 | 4 7 8 8 8 8 Average Carried 7 | 2 4 7 8 8 7 Final Capacity 8 | 8 8 8 8 8 8 Final Carried 8 | 4 7 8 8 8 2 Class Distribution -------------------- 100% | Mutant Dominant Class ---------------- Mutant | -10/Materials Mutant | -10/Mines Mutant | -10/Exiles Mutant | -9/Mines Mutant | -8/Materials Resources | -11 -10 -10 -10 -9 -8 ----------- Run | Yrd Mat Min Exi Min Mat Matter Collected 1029 | 176 84 38 . 58 673 Remotely . | . . . . . . Salvage Created 1120 | . 50 40 . . 1030 Parts 60 | . 2 . . . 58 Haulers Intercepted . | . . . . . . Recyclers Shooed . | . . . . . . Parts Field Recycled . | . . . . . . Retrieved Matter . | . . . . . . Parts Self-Destructed . | . . . . . . Prevented . | . . . . . . Kills | -11 -10 -10 -10 -9 -8 ------- Run | Yrd Mat Min Exi Min Mat Combat Hostiles Destroyed 19 | . 1 1 . . 17 Guns 13 | . 1 1 . . 11 Cannons 4 | . . . . . 4 AOE 2 | . . . . . 2 Classes Destroyed 7 | . 1 1 . . 5 Builder 4 | . . . . . 4 Recycler 1 | . . . . . 1 Mechanic 1 | . . . . . 1 Swarmer 1 | . . 1 . . . Grunt 12 | . 1 . . . 11 Sentry 5 | . . . . . 5 Specialist 1 | . . . . . 1 Best Kill Streak 5 | . 1 1 . . 5 Combat Bots Only 3 | . 1 1 . . 3 Max Kills in Single Turn 3 | . 1 1 . . 3 Gunslinging . | . . . . . . Exploded 1 | . . . . . 1 Melee . | . . . . . . Uniques/NPCs Destroyed . | . . . . . . Combat | -11 -10 -10 -10 -9 -8 -------- Run | Yrd Mat Min Exi Min Mat Hostile Shots Fired 218 | . . 4 . . 214 Missed 52 | . . . . . 52 Damage Taken 2567 | . . 27 . . 2540 Core 559 | . . . . . 559 Absorbed by Shields . | . . . . . . Regen/Repaired (Parts) 94 | . . . . . 94 Core Remaining (%) 100 | 100 . . . 100 . Volleys Fired 86 | . 2 8 . . 76 Largest 2 | . 2 2 . . 2 Hottest 105 | . 60 60 . . 105 Shots Fired 169 | . 4 16 . . 149 Gun 133 | . 4 16 . . 113 Cannon 36 | . . . . . 36 Launcher . | . . . . . . Special . | . . . . . . Kinetic 113 | . 2 8 . . 103 Thermal 8 | . . . . . 8 Explosive . | . . . . . . Electromagnetic 48 | . 2 8 . . 38 Robot Hit Streak 16 | . 3 3 . . 16 Robot Miss Streak 2 | . . 2 . . 2 Penetration Max . | . . . . . . Secondary Targets 1 | . . . . . 1 Max Gunslinging Chain 1 | . . . . . 1 Shots Hit Robots 114 | . 3 3 . . 108 Core Hits 51 | . 1 5 . . 45 Critical Kills . | . . . . . . Critical Parts Destroyed . | . . . . . . Critical Strikes 3 | . . . . . 3 Burn 1 | . . . . . 1 Blast 2 | . . . . . 2 Melee Attacks . | . . . . . . Impact . | . . . . . . Slashing . | . . . . . . Piercing . | . . . . . . Sneak Attacks . | . . . . . . Combat Hostiles . | . . . . . . Follow-up Attacks . | . . . . . . Damage Inflicted 2200 | . 39 93 . . 2068 Guns 1195 | . 39 93 . . 1063 Cannons 598 | . . . . . 598 Explosions 407 | . . . . . 407 Melee . | . . . . . . Ramming . | . . . . . . Kinetic 1037 | . 9 39 . . 989 Thermal 399 | . . . . . 399 Explosive 117 | . . . . . 117 Electromagnetic 647 | . 30 54 . . 563 Impact . | . . . . . . Slashing . | . . . . . . Piercing . | . . . . . . Highest Corruption . | . . . . . . Average Corruption . | . . . . . . Corruption Purged . | . . . . . . Corruption Blocked . | . . . . . . Overload Shots . | . . . . . . Overflow Damage 70 | . . . . . 70 Projectiles 7 | . . . . . 7 Explosions 63 | . . . . . 63 Melee . | . . . . . . Knockbacks 6 | . . . . . 6 Impact . | . . . . . . Kinetic 5 | . . . . . 5 Secondary 1 | . . . . . 1 Self-Inflicted Damage 208 | . . . . . 208 Shots 3 | . . . . . 3 Rammed 1 | . . . . . 1 Targets Rammed 1 | . . . . . 1 Kicked . | . . . . . . Crushed . | . . . . . . Highest Temperature 214 | . 20 40 . . 214 Average Temperature 55 | . 15 19 . . 61 Received Heat Transfer 918 | . . . . . 918 Siege Activations . | . . . . . . Robots Corrupted . | . . . . . . Combat Hostiles . | . . . . . . Parts Fried 1 | . . . . . 1 Impact Corruptions . | . . . . . . Robots Melted . | . . . . . . Combat Hostiles . | . . . . . . Parts Melted . | . . . . . . Heat Transferred 583 | . . . . . 583 Parts Sabotaged . | . . . . . . Parts Stolen . | . . . . . . Parts Stripped . | . . . . . . Power Chain Reactions 2 | . . . . . 2 Alert | -11 -10 -10 -10 -9 -8 ------- Run | Yrd Mat Min Exi Min Mat Peak Influence 241 | . 60 68 . . 241 Initial 23 | . . 23 . . . Average 99 | . 12 66 . . 126 Maximum Alert Level 1 | . . . . . 1 Low Security (%) 80 | 100 100 100 . 100 72 Level 1 19 | . . . . . 27 Level 2 . | . . . . . . Level 3 . | . . . . . . Level 4 . | . . . . . . Level 5 . | . . . . . . High Security . | . . . . . . Max Security . | . . . . . . Squads Dispatched 6 | . 2 . . . 4 Investigation 3 | . . . . . 3 Extermination . | . . . . . . Reinforcement 3 | . 2 . . . 1 Assault . | . . . . . . Garrison . | . . . . . . Intercept . | . . . . . . Searches Triggered . | . . . . . . Construction Impeded . | . . . . . . Haulers Reinforced . | . . . . . . Active Scanning Responses . | . . . . . . Cargo Convoy Interrupts . | . . . . . . Stealth | -11 -10 -10 -10 -9 -8 --------- Run | Yrd Mat Min Exi Min Mat Distress Signals 5 | . 2 . . . 3 Communications Jammed . | . . . . . . Distress Signals . | . . . . . . Times Spotted 41 | . 3 4 . . 34 Peak Tracking Total 8 | . 2 3 . . 8 Tactical Retreats 5 | . 1 . . . 4 Traps | -11 -10 -10 -10 -9 -8 ------- Run | Yrd Mat Min Exi Min Mat Traps Triggered . | . . . . . . Indirectly . | . . . . . . Trap Hack Attempts . | . . . . . . Triggered . | . . . . . . Disarmed 1 | . . . . . 1 Reprogrammed . | . . . . . . Reused . | . . . . . . Traps Extracted . | . . . . . . Installed . | . . . . . . Triggered . | . . . . . . Machines | -11 -10 -10 -10 -9 -8 ---------- Run | Yrd Mat Min Exi Min Mat Machines Disabled 2 | . . . . . 2 Max in Single Turn 1 | . . . . . 1 Machines Repaired . | . . . . . . Machines Dismantled . | . . . . . . Machines Sabotaged . | . . . . . . Overloaded Fab Kills . | . . . . . . Hacking | -11 -10 -10 -10 -9 -8 --------- Run | Yrd Mat Min Exi Min Mat Machines Accessed 4 | . 1 . . . 3 Terminals 2 | . 1 . . . 1 Fabricators . | . . . . . . Repair Stations 1 | . . . . . 1 Recycling Units . | . . . . . . Scanalyzers 1 | . . . . . 1 Garrison Access . | . . . . . . Total Hacks 28 | . 2 . . . 26 Successful 21 | . . . . . 21 Failed 7 | . 2 . . . 5 Catastrophic . | . . . . . . Database Lockouts . | . . . . . . Manual . | . . . . . . Terminals 8 | . 2 . . . 6 Fabricators . | . . . . . . Repair Stations 6 | . . . . . 6 Recycling Units . | . . . . . . Scanalyzers 14 | . . . . . 14 Garrison Access . | . . . . . . Terminal Hacks 5 | . . . . . 5 Emergency Access Points 1 | . . . . . 1 Locate Traps 1 | . . . . . 1 Disarm Traps 1 | . . . . . 1 Reprogram Traps 1 | . . . . . 1 Dispatch Records 1 | . . . . . 1 Fabricator Hacks . | . . . . . . Repair Station Hacks 5 | . . . . . 5 Scan Component 3 | . . . . . 3 Repair 2 | . . . . . 2 Recycling Unit Hacks . | . . . . . . Scanalyzer 11 | . . . . . 11 Insert Component 6 | . . . . . 6 Analyze 5 | . . . . . 5 Garrison Access Hacks . | . . . . . . Unauthorized Hacks . | . . . . . . Terminals . | . . . . . . Fabricators . | . . . . . . Repair Stations . | . . . . . . Recycling Units . | . . . . . . Scanalyzers . | . . . . . . Garrison Access . | . . . . . . Data Cores Recovered . | . . . . . . Used . | . . . . . . Hacking Detections 4 | . 1 . . . 3 Full Trace Events 3 | . . . . . 3 Feedback Events . | . . . . . . Feedback Blocked . | . . . . . . Robot Schematics Acquired . | . . . . . . Robots Built . | . . . . . . Authchips . | . . . . . . Time . | . . . . . . Total Robot Build Rating . | . . . . . . Part Schematics Acquired 5 | . . . . . 5 Parts Built . | . . . . . . Authchips . | . . . . . . Time . | . . . . . . Total Part Build Rating . | . . . . . . Parts Repaired 2 | . . . . . 2 Time 52 | . . . . . 52 Parts Recycled . | . . . . . . Recycled Matter . | . . . . . . Retrieved Matter . | . . . . . . Retrieved Components . | . . . . . . Parts Scanalyzed 5 | . . . . . 5 Part Schematics Acquired 5 | . . . . . 5 Parts Damaged . | . . . . . . Bothacking | -11 -10 -10 -10 -9 -8 ------------ Run | Yrd Mat Min Exi Min Mat Used RIF Installer . | . . . . . . Robots Hacked . | . . . . . . Non-combat . | . . . . . . Combat . | . . . . . . Robot Hacks Applied . | . . . . . . Relay Couplers Released . | . . . . . . Fabnet Peak Effective % . | . . . . . . Robots Rewired . | . . . . . . Allies Hacked . | . . . . . . Hacks Repelled . | . . . . . . Allies | -11 -10 -10 -10 -9 -8 -------- Run | Yrd Mat Min Exi Min Mat Total Allies . | . . . . . . Largest Group . | . . . . . . Highest-Rated Group . | . . . . . . Highest-Rated Ally . | . . . . . . Total Orders . | . . . . . . Ally Attacks . | . . . . . . Total Damage . | . . . . . . Kills . | . . . . . . Allies Corrupted . | . . . . . . Allies Melted . | . . . . . . Intel | -11 -10 -10 -10 -9 -8 ------- Run | Yrd Mat Min Exi Min Mat Robot Analysis Total . | . . . . . . Derelict Logs Recovered . | . . . . . . Drone Launches . | . . . . . . Drone Recoveries . | . . . . . . Exploration | -11 -10 -10 -10 -9 -8 ------------- Run | Yrd Mat Min Exi Min Mat Turns Passed 2017 | 76 171 174 35 119 1442 Spaces Moved 1187 | 60 133 120 30 95 749 Core 17 | 12 . . . . 5 Treads . | . . . . . . Legs 1170 | 48 133 120 30 95 744 Wheels . | . . . . . . Hover . | . . . . . . Flight . | . . . . . . Fastest Speed 50 | 50 120 120 120 120 100 Average Speed 119 | 106 120 120 120 120 120 Slowest Speed 200 | 120 120 120 120 120 200 Overloaded Moves . | . . . . . . Propulsion Burnouts . | . . . . . . Robots Hopped . | . . . . . . Cave-ins Triggered . | . . . . . . Exploration Rate (%) 21 | 5 28 32 8 18 36 Regions Visited 5 Branch Regions 3 Pre-discovered Areas . | . . . . . . Known Exits Taken . | . . . . . . Unknown Exits Taken 5 | 1 1 1 1 1 . Scrap Searched 2 | . . . . 2 . Spaces Dug . | . . . . . . Terrain Destroyed 53 | . . . . . 53 Melee . | . . . . . . Projectile . | . . . . . . AOE 53 | . . . . . 53 Terrain Rammed . | . . . . . . Walls Destroyed . | . . . . . . Machines Disabled . | . . . . . . Actions | -11 -10 -10 -10 -9 -8 --------- Run | Yrd Mat Min Exi Min Mat Total 1625 | 70 141 136 29 100 1149 Wait 272 | . 4 6 . . 262 Move 1182 | 59 132 119 29 94 749 Hop . | . . . . . . Pick Up 18 | 5 3 2 . . 8 Fast Attach 20 | 5 . . . 3 12 Attach 14 | 1 . . . . 13 Detach 2 | . . . . . 2 Swap 13 | . . . . . 13 Drop 17 | . . 1 . 3 13 Fire 86 | . 2 8 . . 76 Melee . | . . . . . . Ram 1 | . . . . . 1 Kick . | . . . . . . Crush . | . . . . . . Escape Stasis . | . . . . . . Rewire . | . . . . . . Trap . | . . . . . . Miscellaneous . | . . . . . . Route ------- -11/Scrapyard -10/Materials -10/Mines -10/Exiles -9/Mines -8/Materials History --------- Turn | Location | Event 7 | -11/Scrapyard | Discovered new exit (range 15) 77 | -11/Scrapyard | Entered Materials 190 | -10/Materials | Met 8R-AWN 228 | -10/Materials | Discovered new exit (range 8) 248 | -10/Materials | Entered Mines 249 | -10/Mines | Followed 8R-AWN into the Mines 306 | -10/Mines | Build established: Mutant 320 | -10/Mines | Assembled infested the area 325 | -10/Mines | Assisted by a Guerilla fighting off Assembled 417 | -10/Mines | Discovered new exit (range 5) 422 | -10/Mines | Entered Exiles 440 | -10/Exiles | Discovered new exit (range 15) 457 | -10/Exiles | Entered Mines 461 | -9/Mines | Discovered new exit (range 14) 475 | -9/Mines | Met a Derelict bent on vengeance 576 | -9/Mines | Entered Materials 576 | -8/Materials | Evolved 4 slots: Propulsion x2, Utility x2 1291 | -8/Materials | Repaired Lgt. Ion Engine 1366 | -8/Materials | Repaired Aluminum Leg 1932 | -8/Materials | Core integrity fell below 50% 1971 | -8/Materials | Core integrity fell below 20% 2018 | -8/Materials | Destroyed by H-55 Commando with Gauss Rifle Last Messages --------------- 01986_ Penetrated by Slug. 01986_ Slug penetrates Wall. 01989_ EM Pulse Gun destroyed. 01989_ X-62 Marksman destroyed. 01989_ Penetrated by Slug. 01989_ Particle Gun destroyed. 01991_ K-01 Serf collects debris. 01992_ Slug penetrates Wall. 01993_ Acquired 10 matter. 01995_ R-06 Scavenger collects Imp. Carbon-fiber Leg. 01997_ Slug penetrates Wall. 02000_ Penetrated by Slug. 02002_ Slug penetrates Wall. 02005_ X-62 Marksman destroyed. 02006_ K-01 Serf collects debris. 02007_ Slug penetrates Wall. 02010_ K-01 Serf collects debris. 02013_ Slug penetrates Wall. 02014_ Y-45 Defender destroyed. 02018_ Slug penetrates Wall. Map ----- +----------------------------------------------------+ | ?????????????????????????????????????????????????? | | ?????????????????????????????????????????????????? | | ?????????????????????????????????????????????????? | | ?????????????????????????????????????????????????? | | ?????????????????????????????????????????????????? | | ?????????????????????????????????????????????????? | | ?????????????????????????????????????????????????? | | ?????????????????????????????????????????????????? | | ?????????????????????????????????????????????????? | | ?????????????????????????????????????????????????? | | ??????????????????????????????# ???????????????### | | ??????????????????????????##### ############## | | ????????????????????????? | | ?????????????????????H??? | | ????????????????????????? | | ????????????????????????????????+############### | | ???????????????????????????????????????????????## | | ????????????????????????????????????????????????# | | ????????????????????????#####???????????????????# | | ????????????????????????# #???????????????????# | | ????????????????????????#! [#???????????????????# | | ????????????????????????# #???????????????????# | | ????????????????????????# #???????????????????# | | ????????????????????????#[ #???????????????????# | | ????????????????????????#[[[#???????????????????# | | ????????????????????????#@%!#???????????????????# | | ???????????? ###/###################### | | ???????????? %h** | | ???????????? % [%% | | ???????????????##### | | ???????????????????##############################/ | | ?????????????????????????????????????????# """"" | | ?????????????????????????????????????????# """"" | | ?????????????????????????????????????????# """"" | | ?????????????????????????????????????????# | | ?????????????????????????????????????????# | | ?????????????????????????????????????????# | | ?????????????????????????????????????????# | | ?????????????????????????????????????????# | | ?????????????????????????????????????????######### | | ?????????????????????????????????????????????????? | | ?????????????????????????????????????????????????? | | ?????????????????????????????????????????????????? | | ?????????????????????????????????????????????????? | | ?????????????????????????????????????????????????? | | ?????????????????????????????????????????????????? | | ?????????????????????????????????????????????????? | | ?????????????????????????????????????????????????? | | ?????????????????????????????????????????????????? | | ?????????????????????????????????????????????????? | +----------------------------------------------------+ Best States ------------- Heat Dissipation 31 Energy Generation 15 Energy Capacity 160 Matter Stores 479 Matter Capacity 500 Sight Range 16 Terrain Scan Range 16 Terrain Scan Density 110 Jamming Range 12 Additional Mass Support 9 Evasion (%) 55 Item Schematics ----------------- Carbon-fiber Leg | -8/Materials | Scanalyzed Assault Rifle | -8/Materials | Scanalyzed Lgt. Assault Rifle | -8/Materials | Scanalyzed Lgt. Ion Engine | -8/Materials | Scanalyzed Minigun | -8/Materials | Scanalyzed Robot Schematics ------------------ None Fabricated ------------ Nothing Alien Tech Used ----------------- None Achievements -------------- I Survived The Infestation Tourist Challenges ------------ None Game ------ Seed DisruptionMakeshiftMonowheel Manual? 0 Play Time 00:37:26 Cumulative 4.7 hours Start 2024.04.01 @ 04:28:44 End 2024.04.01 @ 05:03:51 Sessions 1 Manual Loads 0 Difficulty Rogue Special Mode None Game No. 10 Rogue 10 Adventurer 0 Explorer 0 Win Type - Total 0 Types 0/0/0/0/0/0/0/0/0 Lore% 2 Gallery% 6 Achievement% 7 Wizard Run 0 Options --------- Layout 1 ASCII 0 Keyboard 1 Movement Vi Keybinds 0 Fullscreen 1 Font 20/SmallcapsGlow Map View 56x47 Zoom Use 0% Tactical HUD 1 Map Filters NONE Filters NONE Steam 1 RUN: b78ada1a-0a99-4250-95da-11f21424e9ab